bitfinex/quotes_ETHUSD_20260216
["timestamp","ask_amount","ask_price","bid_price","bid_amount"]
[1771279893288,0.43086024,1998.3,1998.0,0.001]
[1771279893492,0.5011,1998.4,1998.0,0.001]
[1771279893687,0.5,1998.2,1998.0,0.001]
[1771279893906,1.25210547,1998.4,1998.0,0.001]
[1771279894212,0.43086111,1998.3,1998.0,0.001]
[1771279894410,0.43086111,1998.2,1998.0,0.001]
[1771279894612,0.5011,1998.4,1998.0,0.001]
[1771279894805,0.43086113,1998.3,1998.0,0.001]
[1771279895107,0.43086113,1998.2,1998.0,0.001]
[1771279895315,0.5,1998.3,1998.0,0.001]
[1771279895521,0.43086114,1998.2,1998.0,0.001]
[1771279895692,0.5,1998.3,1998.0,0.001]
[1771279895904,0.43086114,1998.2,1998.0,0.001]
[1771279896106,0.5,1998.3,1998.0,0.001]
[1771279896405,0.43086114,1998.2,1998.0,0.001]
[1771279896714,0.5,1998.3,1998.0,0.001]
[1771279896904,0.43086113,1998.2,1998.0,0.001]
[1771279897209,0.5,1998.3,1998.0,0.001]
[1771279897393,0.43086113,1998.2,1998.0,0.001]
[1771279897593,0.5,1998.3,1998.0,0.001]
[1771279897794,0.43086113,1998.2,1998.0,0.001]
[1771279898004,0.5,1998.3,1998.0,0.001]
[1771279898196,0.43086114,1998.2,1998.0,0.001]
[1771279898383,0.5,1998.3,1998.0,0.001]
[1771279898586,0.43086113,1998.2,1998.0,0.001]
[1771279898795,0.5,1998.3,1998.0,0.001]
[1771279899088,0.93086113,1998.2,1998.0,0.001]
[1771279899303,0.5,1998.2,1998.0,0.001]
[1771279900196,0.5,1998.2,1998.1,0.001]
[1771279900514,0.93196143,1998.2,1998.1,0.001]
[1771279902601,0.43196143,1998.2,1997.9,1.25229835]
[1771279902947,0.0011,1998.3,1997.9,1.25229835]
[1771279904294,0.0011,1998.4,1998.0,6.7035417]
[1771279904534,0.0011,1998.7,1998.2,6.7035417]
[1771279905303,0.0011,1998.7,1998.3,1.2510634]
[1771279910934,0.0011,1998.7,1998.4,0.914]
[1771279913026,0.0011,1998.7,1998.5,1.2509382]
[1771279913536,0.0011,1998.8,1998.5,1.2509382]
[1771279916139,0.0011,1998.8,1998.2,1.25112601]
[1771279916446,0.0011,1998.8,1998.3,0.919]
[1771279916447,0.5011,1998.8,1998.3,0.919]
[1771279916807,0.5011,1998.8,1998.2,1.25112601]
[1771279917013,0.5011,1998.8,1998.3,0.92]
[1771279917246,0.0211,1998.8,1998.3,0.92]
[1771279917929,0.0211,1998.8,1998.4,1.2510008]
[1771279919341,7.225,1999.5,1998.4,1.2510008]
[1771279919342,0.4947163,1999.7,1998.7,7.17960332]
[1771279919545,0.4947163,1999.7,1998.8,0.92]
[1771279920059,0.4947163,1999.7,1998.9,1.25068787]
[1771279920517,0.0011,1999.8,1999.2,6.70070332]
[1771279920716,0.0011,1999.8,1999.3,0.919]
[1771279922045,0.0011,1999.8,1999.3,2.1693766]
[1771279923538,0.4958163,1999.8,1999.3,2.1693766]
[1771279925646,0.0011,1999.7,1999.3,2.1693766]
[1771279926621,0.0011,1999.7,1999.3,0.919]
[1771279926622,0.4958163,1999.7,1999.3,0.919]
[1771279926820,0.4958163,1999.7,1999.2,1.25044989]
[1771279927123,0.4958163,1999.7,1999.3,0.439]
[1771279927628,0.4947163,1999.6,1999.1,0.92]
[1771279928530,0.4947163,1999.6,1998.7,0.4789]
[1771279928743,0.4947163,1999.6,1998.8,0.92]
[1771279929866,0.4947163,1999.4,1998.6,5.00337122]
[1771279930068,0.4947163,1999.4,1998.6,0.919]
[1771279932360,0.4947163,1999.2,1998.7,1.25081302]
[1771279932537,0.4947163,1999.2,1998.6,2.16983835]
[1771279933650,0.4947163,1999.2,1998.6,1.25083835]
[1771279933950,0.4947163,1999.2,1998.6,2.16883835]
[1771279936121,1.74522187,1999.2,1998.6,2.16883835]
[1771279936451,0.46810886,1999.1,1998.6,2.16883835]
[1771279937952,0.46810886,1999.1,1998.7,0.001]
[1771279940258,0.46810886,1999.5,1998.7,0.001]
[1771279942258,0.46810886,1999.6,1998.7,0.47441754]
[1771279943943,0.46810886,1999.6,1998.8,7.17049239]
[1771279945064,0.46810886,1999.5,1998.9,1.25068787]
[1771279946862,0.46810886,1999.5,1998.9,2.16968787]
[1771279948074,0.46810886,1999.5,1998.9,2.64310541]
[1771279948363,1.71842578,1999.5,1998.9,1.72410541]
[1771279948535,1.71842578,1999.5,1998.9,2.64310541]
[1771279949264,0.46810886,1999.4,1998.9,2.16968787]
[1771279950264,0.46920886,1999.4,1998.9,2.16968787]
[1771279950967,0.46810886,1999.3,1998.8,0.001]
[1771279951764,1.2504761,1999.3,1998.8,0.001]
[1771279951964,0.46810886,1999.2,1998.8,0.001]
[1771279953947,0.46810886,1999.1,1998.8,0.001]
[1771279957475,0.46810886,1999.0,1998.8,0.001]
[1771279957676,0.46810886,1998.9,1998.5,0.001]
[1771279959976,1.25056937,1999.1,1998.5,0.001]
[1771279959977,0.46810886,1999.1,1998.5,0.001]
[1771279962078,0.46810886,1998.9,1998.5,0.001]
[1771279962448,0.46810886,1998.9,1998.6,0.001]
[1771279963646,0.0011,1999.0,1998.6,0.001]
[1771279963842,0.0011,1999.0,1998.6,0.47441754]
[1771279964068,0.0011,1999.0,1998.7,1.25081302]
[1771279965080,0.0011,1999.0,1998.6,1.72525273]
[1771279966965,0.0011,1999.0,1998.6,0.001]
[1771279967587,0.48519652,1999.0,1998.6,0.001]
[1771279968490,0.47991753,1998.9,1998.6,0.001]
[1771279968686,0.0011,1999.0,1998.6,0.001]
[1771279968996,0.47991753,1998.9,1998.4,0.001]
[1771279971880,0.0011,1999.0,1998.4,0.48950294]
[1771279972071,0.0011,1999.0,1998.5,0.48850294]
[1771279972269,0.0011,1999.0,1998.4,6.70100015]
[1771279972270,0.0011,1999.0,1998.6,6.70000015]
[1771279972478,0.0011,1999.0,1998.7,0.48850294]
[1771279973165,0.0011,1999.0,1998.8,1.25075045]
[1771279973765,0.0011,1999.0,1998.7,1.73926516]
[1771279975656,0.0011,1998.9,1998.7,1.73926516]
[1771279976192,0.0011,1998.9,1998.7,1.25076222]
[1771279976367,0.0011,1998.9,1998.6,1.25081675]
[1771279977473,0.0011,1999.2,1998.6,1.25081675]
[1771279977672,0.45228511,1999.8,1999.0,0.49070294]
[1771279977673,0.48101753,1999.7,1999.0,0.49070294]
[1771279977875,0.48101753,1999.7,1999.1,0.92]
[1771279978185,1.7312108,1999.7,1999.1,0.92]
[1771279978565,0.48101753,1999.7,1999.1,0.92]
[1771279979372,0.48101753,1999.7,1999.2,1.2505002]
[1771279979571,0.0011,1999.7,1999.3,0.48850294]
[1771279980093,0.0011,1999.7,1999.2,1.2505002]
[1771279980294,0.47991753,1999.5,1998.7,1.73931596]
[1771279980469,0.47991753,1999.4,1998.7,2.65931596]
[1771279980794,0.47991753,1999.3,1998.6,1.25083017]
[1771279980958,0.47991753,1999.3,1998.5,2.17189577]
[1771279981366,1.73041773,1999.2,1998.5,2.17189577]
[1771279981672,0.47991753,1999.1,1998.5,2.17189577]
[1771279982268,0.47991753,1999.1,1998.5,1.25189577]
[1771279982691,0.47991753,1999.1,1998.5,0.001]
[1771279982878,0.47991753,1999.1,1998.5,1.25193761]
[1771279983468,1.73052975,1999.1,1998.5,0.001]
[1771279984195,0.47991753,1999.0,1998.5,0.001]
[1771279984399,0.47991753,1998.8,1998.5,0.001]
[1771279985702,0.47991753,1998.7,1998.5,0.00012471]
[1771279985898,0.47991753,1998.5,1998.1,0.001]
[1771279986103,0.47991753,1998.5,1997.7,1.25143915]
[1771279986305,0.47991753,1998.5,1997.7,0.001]
[1771279986508,0.47991753,1998.4,1997.4,1.7401013]
[1771279986809,0.47991753,1998.4,1997.4,0.001]
[1771279987374,0.47991753,1998.4,1997.5,0.001]
[1771279987577,0.47991753,1998.2,1997.3,0.001]
[1771279988605,0.47991753,1998.2,1997.4,0.001]
[1771279988902,0.47991753,1998.2,1997.3,0.001]
[1771279989710,0.47991753,1998.0,1997.4,0.001]
[1771279990005,0.47991753,1997.9,1997.0,1.25287781]
[1771279990314,0.47991753,1997.9,1997.1,0.001]
[1771279990512,0.47991753,1997.9,1996.9,1.25192581]
[1771279990802,0.47991753,1997.5,1996.6,0.001]
[1771279991007,0.47991753,1997.4,1996.6,1.25311476]
[1771279991179,0.47991753,1997.4,1996.6,0.001]
[1771279991574,0.47991753,1997.4,1996.7,0.001]
[1771279991907,0.47991753,1997.4,1996.4,5.00890502]
[1771279991908,0.47991753,1997.2,1996.6,0.001]
[1771279992109,0.47991753,1997.2,1996.5,0.001]
[1771279992989,0.47991753,1997.2,1996.6,0.001]
[1771279993205,0.47991753,1997.2,1996.4,0.001]
[1771279993579,0.47991753,1997.2,1996.5,0.001]
[1771279993814,0.47991753,1997.0,1996.2,1.25233248]
[1771279994018,0.47991753,1997.0,1996.3,0.001]
[1771279994324,0.47991753,1997.0,1996.2,0.001]
[1771279994905,0.47991753,1997.0,1996.3,0.001]
[1771279995106,0.47991753,1997.0,1996.2,0.001]
[1771279995704,0.47991753,1997.0,1996.3,0.001]
[1771279995908,0.4891719,1996.8,1996.2,0.001]
[1771279996109,0.4891719,1996.8,1996.1,0.001]
[1771279997416,0.4891719,1996.8,1996.0,5.00993083]
[1771279997591,0.4891719,1996.8,1996.1,0.001]
[1771279998205,1.2520659,1996.7,1996.1,0.001]
[1771279998404,0.4891719,1996.6,1996.2,0.001]
[1771279998605,0.4891719,1996.6,1996.0,1.25250501]
[1771279998606,0.4891719,1996.6,1996.1,0.001]
[1771279999105,0.4891719,1996.6,1996.2,0.001]
[1771279999285,0.4891719,1996.6,1996.1,0.001]
[1771279999480,0.4891719,1996.6,1996.0,0.001]
[1771280000206,0.4891719,1996.6,1996.1,0.001]
[1771280000382,1.74133853,1996.6,1996.1,0.001]
[1771280000684,1.74133853,1996.6,1995.8,5.0103802]
[1771280000685,0.4891719,1996.5,1995.5,1.73374985]
[1771280000892,0.4891719,1996.5,1995.6,0.001]
[1771280001086,0.784,1996.4,1995.6,0.48199368]
[1771280001691,0.4891719,1996.3,1995.6,0.001]
[1771280001896,0.4891719,1996.3,1996.1,0.001]
[1771280002097,0.4891719,1996.3,1995.6,0.001]
[1771280002896,1.74153838,1996.3,1996.0,0.001]
[1771280004709,0.4891719,1996.2,1996.0,0.001]
[1771280005499,1.74156702,1996.2,1995.8,0.001]
[1771280005696,0.4891719,1996.1,1995.8,0.001]
[1771280005911,0.4891719,1996.1,1995.3,1.25294441]
[1771280006224,0.4891719,1996.1,1995.4,0.001]
[1771280006612,0.4891719,1996.1,1995.5,0.001]
[1771280006807,0.4891719,1996.1,1995.4,0.001]
[1771280007014,0.4891719,1996.1,1995.2,1.25297112]
[1771280007015,0.4891719,1996.1,1995.3,0.001]
[1771280007330,1.2741719,1996.0,1995.3,0.001]
[1771280007503,2.52673938,1996.0,1995.4,0.001]
[1771280007699,2.52673938,1996.0,1995.2,1.7339648]
[1771280007700,1.74168128,1996.0,1995.3,0.48199368]
[1771280008224,1.74168128,1996.0,1995.4,0.001]
[1771280008426,1.74168128,1996.0,1995.3,0.001]
[1771280009422,0.4891719,1996.2,1995.4,0.001]
[1771280011528,0.4891719,1996.1,1995.4,0.001]
[1771280011821,0.4891719,1996.1,1995.5,0.001]
[1771280012006,0.4891719,1996.1,1995.4,0.001]
[1771280012408,0.4891719,1996.6,1995.5,0.48199368]
[1771280012608,0.4891719,1996.4,1995.5,0.48099368]
[1771280012817,0.4891719,1996.4,1995.6,0.001]
[1771280013533,1.74148868,1996.3,1995.6,0.001]
[1771280013728,21.8519689,1996.2,1994.9,0.912]
[1771280013906,21.8519689,1996.2,1994.4,0.48099368]
[1771280013907,0.4891719,1995.8,1994.6,0.48099368]
[1771280014102,0.4891719,1995.6,1994.6,0.48099368]
[1771280014507,8.21474149,1996.1,1994.6,0.48099368]
[1771280014508,0.4891719,1995.9,1994.6,0.48099368]
[1771280014740,2.232329,1995.8,1994.6,0.48099368]
[1771280014941,0.4891719,1995.9,1995.5,0.001]
[1771280015236,0.4891719,1995.9,1994.9,0.48099368]
[1771280015450,1.7417783,1995.9,1995.4,0.001]
[1771280016306,0.4891719,1995.9,1995.4,0.001]
[1771280016547,1.74174239,1995.9,1995.4,0.001]
[1771280018605,0.4891719,1995.8,1995.4,0.001]
[1771280020240,1.74186519,1995.7,1995.4,0.001]
[1771280021244,1.74186519,1995.7,1994.8,1.73420121]
[1771280021744,0.4891719,1995.8,1994.9,0.48099368]
[1771280022045,0.4891719,1995.8,1994.7,1.73426804]
[1771280022345,0.4891719,1995.6,1994.7,1.73426804]
[1771280022941,0.785,1995.5,1994.7,1.73426804]
[1771280023714,1.2741719,1995.5,1994.5,5.01369695]
[1771280023946,0.4891719,1995.4,1994.5,5.50052838]
[1771280024416,1.25294441,1995.3,1994.5,5.50052838]
[1771280025819,1.25294441,1995.3,1994.5,1.7402784]
[1771280026915,1.70827345,1995.3,1994.5,1.7402784]
[1771280027657,1.70827345,1995.3,1994.6,0.001]
[1771280028236,0.45532904,1995.2,1994.6,0.001]
[1771280029141,9.010179,1995.1,1994.6,0.001]
[1771280029345,1.25313283,1995.0,1994.6,0.001]
[1771280031261,1.71932412,1995.0,1994.6,0.001]
[1771280032464,1.71934087,1995.0,1994.6,0.001]
[1771280032668,0.46619129,1994.9,1994.6,0.001]
[1771280033323,2.50332811,1995.0,1994.6,0.001]
[1771280033552,4.97409824,1995.2,1994.6,0.001]
[1771280033866,0.46619129,1995.1,1994.6,0.001]
[1771280035547,1.25313283,1995.0,1994.6,0.001]
[1771280036167,0.46619129,1995.1,1994.0,1.72674658]
[1771280036456,0.46619129,1995.1,1994.1,0.4729853]
[1771280036655,0.46619129,1995.3,1994.1,0.4729853]
[1771280036831,0.87119129,1995.2,1994.1,0.4729853]
[1771280037229,0.405,1995.2,1994.1,0.4729853]
[1771280037553,1.71899834,1995.6,1994.3,0.4729853]
[1771280037732,0.405,1995.6,1994.3,0.4729853]
[1771280037932,1.25354313,1996.1,1994.6,0.4729853]
[1771280038132,1.76854313,1996.1,1994.8,0.4729853]
[1771280038363,0.5161,1996.1,1994.8,0.4729853]
[1771280038524,0.46619129,1996.0,1994.8,0.4729853]
[1771280038728,0.784,1996.0,1994.8,0.4729853]
[1771280039656,2.03655835,1996.0,1995.0,0.4729853]
[1771280040330,2.50274964,1996.0,1995.0,0.4729853]
[1771280040873,1.71874964,1996.0,1995.0,0.4729853]
[1771280041034,2.50274964,1996.0,1995.0,0.4729853]
[1771280041435,0.0011,1995.1,1995.0,0.4729853]
[1771280041637,2.50274964,1996.0,1995.1,1.72605532]
[1771280041856,0.0011,1995.2,1995.1,1.72605532]
[1771280042161,2.50274964,1996.0,1995.1,1.72605532]
[1771280042336,0.0011,1995.4,1995.1,1.72605532]
[1771280044849,0.0011,1995.4,1995.1,0.4729853]
[1771280045336,0.0011,1995.4,1994.9,1.72612779]
[1771280051477,0.0011,1995.4,1994.9,1.71693732]
[1771280054590,0.0011,1995.4,1995.0,0.001]
[1771280054977,0.0011,1995.3,1995.0,0.001]
[1771280056586,0.49764879,1995.3,1995.0,0.001]
[1771280056896,0.0011,1995.3,1995.0,0.001]
[1771280060713,0.49764879,1995.3,1995.0,0.001]
[1771280062703,1.25300721,1995.2,1995.0,0.001]
[1771280065772,0.49654879,1995.2,1995.0,0.001]
[1771280068233,2.03507002,1995.1,1995.0,0.001]
[1771280068798,2.03507002,1995.1,1994.7,0.001]
[1771280068998,0.782,1995.1,1994.7,0.001]
[1771280069196,1.27854879,1995.1,1994.7,0.001]
[1771280069603,1.27854879,1995.1,1995.0,0.001]
[1771280070107,1.27854879,1995.1,1994.7,0.001]
[1771280070413,0.49654879,1994.9,1994.7,0.001]
[1771280070795,0.49654879,1994.9,1994.2,0.001]
[1771280071086,0.49654879,1994.9,1994.2,0.4992801]
[1771280071491,1.25411598,1995.2,1994.2,0.4992801]
[1771280071833,0.0011,1995.2,1994.4,0.4992801]
[1771280072117,0.0011,1995.2,1994.6,0.4992801]
[1771280072279,0.0011,1995.2,1994.9,8.47724768]
[1771280072485,0.0011,1995.3,1994.9,7.97796758]
[1771280072681,0.0011,1995.5,1995.2,0.4992801]
[1771280072926,1.65754486,1996.0,1995.2,0.4992801]
[1771280073090,0.405,1996.0,1995.2,0.4992801]
[1771280073288,1.65750782,1996.0,1995.2,0.4992801]
[1771280073696,0.405,1996.0,1995.2,0.4992801]
[1771280073884,1.65750765,1996.0,1995.2,0.4992801]
[1771280074429,5.50755896,1996.1,1995.4,0.4992801]
[1771280074430,0.0011,1996.1,1995.4,0.4992801]
[1771280076913,0.0011,1996.1,1995.5,1.25281884]
[1771280077294,0.0011,1996.1,1995.4,1.75211588]
[1771280078529,0.0011,1996.1,1995.5,0.4992801]
[1771280079131,0.0011,1996.1,1995.6,0.4992801]
[1771280081922,0.0011,1996.1,1995.7,0.4992801]
[1771280082121,0.0011,1996.1,1995.6,1.25274424]
[1771280082716,0.0011,1996.0,1995.6,1.75202434]
[1771280083521,0.49764879,1996.0,1995.5,0.001]
[1771280083712,0.0011,1996.0,1995.5,1.25381347]
[1771280083919,0.0011,1996.0,1995.5,1.75309357]
[1771280085009,0.0011,1996.0,1995.5,1.75309703]
[1771280087133,0.0011,1996.0,1995.5,0.5002801]
[1771280087501,0.0011,1996.0,1995.5,0.001]
[1771280087502,0.45201474,1996.0,1995.5,0.001]
[1771280089844,1.25256776,1995.9,1995.5,0.001]
[1771280090041,0.45805865,1995.7,1995.2,0.001]
[1771280090229,1.23905865,1995.8,1995.2,0.001]
[1771280090751,0.45805865,1995.7,1995.2,0.001]
[1771280093949,2.0336371,1995.8,1995.2,0.50092664]
[1771280094150,0.45805865,1995.7,1995.2,0.001]
[1771280095147,0.45805865,1995.7,1995.3,0.001]
[1771280096474,1.71081471,1995.6,1995.3,0.001]
[1771280099257,1.71077903,1995.7,1995.3,0.001]
[1771280099564,0.45805865,1995.6,1995.0,0.001]
[1771280099949,1.24205865,1995.6,1995.0,1.75405535]
[1771280100259,1.24205865,1995.6,1995.0,1.75405921]
[1771280101325,1.25281884,1995.5,1995.0,0.50092664]
[1771280101771,6.25333401,1995.6,1995.1,0.49992664]
[1771280101772,0.784,1995.6,1995.1,0.49992664]
[1771280101935,0.0011,1995.9,1995.1,0.49992664]
[1771280102151,0.0011,1995.9,1995.3,0.49992664]
[1771280102951,1.25368642,1995.9,1995.4,0.49992664]
[1771280103155,0.0011,1995.9,1995.4,0.49992664]
[1771280103354,0.0011,1995.9,1995.4,1.75278787]
[1771280104273,0.0011,1995.9,1995.4,0.49992664]
[1771280104981,0.0011,1995.9,1995.4,1.75280662]
[1771280105270,0.0011,1995.9,1995.4,1.75280409]
[1771280105442,0.0011,1995.9,1995.5,0.49992664]
[1771280107380,0.0011,1995.9,1995.5,0.50092664]
[1771280107678,0.0011,1995.9,1995.5,1.75373875]
[1771280107883,0.0011,1995.9,1995.5,0.50092664]
[1771280109758,0.0011,1995.9,1995.5,1.75373744]
[1771280113680,0.0011,1995.9,1995.5,0.001]
[1771280115793,1.25366776,1995.9,1995.5,0.001]
[1771280116084,0.0011,1996.4,1995.9,0.4872033]
[1771280116285,0.903,1997.3,1996.5,0.4872033]
[1771280116457,0.49618374,1997.7,1996.8,0.4872033]
[1771280116654,1.28018374,1997.7,1996.8,0.4872033]
[1771280117056,0.784,1997.7,1997.0,0.4872033]
[1771280117269,1.25135198,1997.9,1997.2,0.4872033]
[1771280117783,0.903,1998.0,1997.6,0.4872033]
[1771280117980,2.03518958,1998.1,1997.4,1.73878293]
[1771280118485,2.53137332,1998.1,1997.0,0.4872033]
[1771280119179,0.784,1998.1,1997.0,0.4872033]
[1771280119365,2.03519555,1998.1,1997.0,0.4872033]
[1771280120382,2.03519032,1998.1,1997.2,0.4872033]
[1771280121980,0.784,1998.1,1997.2,0.4872033]
[1771280122471,0.784,1998.1,1997.4,0.4872033]
[1771280123773,2.03519074,1998.1,1997.4,0.4872033]
[1771280124200,0.49618374,1998.0,1997.0,1.25183997]
[1771280124372,0.49618374,1998.0,1996.9,1.73909433]
[1771280124564,1.74749761,1997.9,1996.9,1.73909433]
[1771280124976,5.00475451,1998.4,1996.9,1.73909433]
[1771280124977,0.49618374,1998.3,1997.0,0.4872033]
[1771280125300,5.50088881,1998.2,1997.0,0.4872033]
[1771280126587,0.49618374,1998.1,1997.2,0.4872033]
[1771280127480,0.49618374,1997.9,1996.7,0.4872033]
[1771280127677,0.49618374,1997.9,1996.3,5.00924837]
[1771280127678,0.49618374,1997.5,1996.0,0.4872033]
[1771280127885,0.406,1997.4,1996.1,0.4872033]
[1771280128180,0.49618374,1997.6,1996.1,0.4872033]
[1771280128485,1.25156445,1997.5,1996.3,0.4872033]
[1771280130824,1.25156445,1997.5,1996.4,1.25225405]
[1771280131008,1.25156445,1997.5,1996.5,0.4872033]
[1771280131501,0.49618374,1997.4,1996.5,0.4872033]
[1771280131708,0.49618374,1997.4,1996.3,1.25226834]
[1771280132077,0.49618374,1997.2,1996.2,1.25237952]
[1771280132279,0.781,1997.3,1996.3,0.47801283]
[1771280132581,1.27718374,1997.3,1996.3,0.47801283]
[1771280133208,1.25175245,1997.2,1996.5,0.001]
[1771280133415,1.74793619,1997.2,1996.5,0.001]
[1771280134906,1.25175245,1997.2,1996.5,0.001]
[1771280135116,1.2515018,1997.6,1996.6,1.73933191]
[1771280135405,1.2515018,1997.6,1996.7,0.4872033]
[1771280136287,0.49618374,1997.5,1996.5,1.25314201]
[1771280136606,0.49618374,1997.5,1996.5,0.001]
[1771280136791,0.49618374,1997.3,1996.5,0.001]
[1771280137296,1.74793619,1997.2,1996.5,0.001]
[1771280141215,1.25175245,1997.2,1996.5,0.4882033]
[1771280141380,1.2517167,1997.3,1996.5,0.4882033]
[1771280142611,0.781,1997.4,1996.5,0.4882033]
[1771280143002,1.2514649,1997.7,1996.7,0.4872033]
[1771280143203,1.77739084,1997.8,1996.7,0.4872033]
[1771280143401,0.526,1997.8,1996.7,0.4872033]
[1771280143711,1.77738094,1997.8,1996.7,0.4872033]
[1771280143916,0.526,1997.8,1996.7,0.4872033]
[1771280144611,1.77737924,1997.8,1996.7,0.4872033]
[1771280145491,0.526,1997.8,1996.8,1.2520032]
[1771280145689,1.25136074,1997.9,1996.9,0.46969225]
[1771280146826,0.0011,1997.2,1996.9,0.46969225]
[1771280146992,1.25136074,1997.9,1996.9,0.46969225]
[1771280147193,0.0011,1997.3,1996.9,0.46969225]
[1771280147394,1.25136074,1997.9,1996.9,0.46969225]
[1771280147595,0.0011,1998.0,1997.1,0.46969225]
[1771280147902,0.0011,1997.5,1996.8,0.46969225]
[1771280148120,0.0011,1997.5,1996.8,1.35069225]
[1771280148491,0.0011,1997.5,1996.9,0.47335159]
[1771280149491,0.0011,1997.5,1996.9,5.48086285]
[1771280149702,0.0011,1998.0,1997.1,0.47335159]
[1771280149703,0.45531858,1998.0,1997.1,0.47335159]
[1771280149943,0.45531858,1998.0,1997.0,1.25187781]
[1771280150330,0.45531858,1998.0,1996.8,1.25197911]
[1771280150657,0.45531858,1998.0,1996.7,3.50837098]
[1771280151941,0.45421858,1997.8,1996.7,3.50837098]
[1771280155047,1.70565773,1997.7,1996.7,3.50837098]
[1771280155538,1.70565773,1997.7,1996.7,3.03501939]
[1771280155746,1.70565773,1997.7,1996.8,0.47335159]
[1771280156924,0.45421858,1997.6,1996.7,3.50837098]
[1771280157144,1.25156445,1997.5,1996.7,3.50837098]
[1771280157517,1.25156445,1997.5,1996.8,0.47335159]
[1771280159942,1.25156445,1997.5,1996.9,1.2519405]
[1771280160836,5.45985012,1997.8,1997.0,0.47335159]
[1771280161345,0.45421858,1997.7,1997.0,0.47335159]
[1771280161514,0.45421858,1997.7,1996.8,0.001]
[1771280161939,1.2515018,1997.6,1996.8,0.001]
[1771280162144,0.45421858,1997.5,1996.8,0.001]
[1771280163645,0.45421858,1997.5,1996.8,0.47435159]
[1771280164238,1.25162711,1997.4,1996.8,1.72631954]
[1771280164447,1.25162711,1997.4,1996.8,0.47435159]
[1771280164654,1.25162711,1997.4,1996.8,1.72635439]
[1771280171667,0.45421858,1997.3,1996.8,0.001]
[1771280171833,0.45421858,1997.3,1996.7,0.001]
[1771280173539,0.45421858,1997.3,1996.7,1.25306294]
[1771280173758,1.25175245,1997.2,1996.8,0.001]
[1771280179473,0.47094677,1997.2,1996.8,0.001]
[1771280180343,0.7791,1997.4,1996.8,0.49320843]
[1771280180549,0.0011,1997.4,1996.8,0.49320843]
[1771280180744,1.25273636,1997.4,1996.8,0.49320843]
[1771280181074,0.0011,1997.4,1996.8,0.49320843]
[1771280182069,0.0011,1997.4,1996.9,1.74414893]
[1771280183401,0.0011,1997.4,1997.0,0.49220843]
[1771280183580,0.0011,1997.7,1997.2,0.49220843]
[1771280184255,0.47204677,1997.7,1997.1,0.877]
[1771280184578,0.47204677,1997.7,1997.1,1.36920843]
[1771280185177,0.0011,1997.7,1997.1,1.36920843]
[1771280187081,0.0011,1997.7,1997.2,1.25175245]
[1771280187581,0.0011,1997.3,1997.2,1.74396088]
[1771280187769,0.0011,1997.4,1997.2,1.74396088]
[1771280188489,0.0011,1997.6,1997.3,0.49220843]
[1771280188780,0.0011,1998.2,1997.3,0.49220843]
[1771280189284,0.0011,1998.2,1997.5,0.49220843]
[1771280189481,0.0011,1998.2,1997.7,0.49220843]
[1771280192067,0.47204677,1998.1,1997.6,0.876]
[1771280192584,0.47204677,1998.1,1997.2,1.25175245]
[1771280192786,0.47204677,1998.1,1997.2,2.12775245]
[1771280193384,0.47204677,1998.1,1997.2,2.61996088]
[1771280194965,1.72219802,1998.0,1997.3,0.49220843]
[1771280195169,1.25230276,1998.1,1997.3,0.49220843]
[1771280195371,0.0011,1998.1,1997.3,0.49220843]
[1771280195567,1.25230384,1998.1,1997.3,0.49220843]
[1771280195768,1.72325061,1998.1,1997.3,0.49220843]
[1771280196086,1.72323904,1998.1,1997.3,0.49220843]
[1771280197182,0.47094677,1998.0,1997.3,1.74387978]
[1771280199665,1.7222534,1998.0,1997.3,1.74387978]
[1771280201080,0.0011,1997.9,1997.3,1.74387978]
[1771280202601,0.47204677,1997.9,1997.2,2.12569037]
[1771280202798,0.47204677,1997.9,1997.1,1.74400084]
[1771280203101,0.47204677,1997.9,1997.1,0.49220843]
[1771280203678,1.25137651,1997.8,1997.1,1.74400603]
[1771280203881,0.47094677,1997.7,1997.1,1.2517976]
[1771280204201,0.47094677,1997.7,1997.0,2.60828403]
[1771280205933,1.72240406,1997.7,1997.1,0.4824523]
[1771280207273,0.48614402,1997.6,1996.9,0.001]
[1771280207875,0.46231528,1997.4,1996.9,0.001]
[1771280209010,1.25156445,1997.5,1996.9,0.001]
[1771280209992,1.25156445,1997.5,1996.9,1.2529405]
[1771280211133,1.25156445,1997.5,1996.9,0.45214437]
[1771280212425,0.46231528,1997.4,1996.9,0.001]
[1771280212630,0.46231528,1997.4,1996.7,0.001]
[1771280213223,0.46231528,1997.2,1996.7,0.001]
[1771280213420,0.46231528,1997.2,1997.0,0.001]
[1771280214317,0.46231528,1997.2,1996.7,0.001]
[1771280215197,1.71413041,1997.1,1996.7,0.001]
[1771280216198,1.71413041,1997.1,1996.3,0.001]
[1771280216199,1.71413041,1997.1,1996.2,2.14147312]
[1771280217128,5.00726052,1997.2,1996.2,2.14151866]
[1771280217129,1.2519405,1996.9,1996.2,2.14151866]
[1771280217322,1.25181513,1997.1,1996.3,0.45114437]
[1771280219228,1.25181513,1997.1,1996.3,0.43204456]
[1771280219612,1.25181513,1997.1,1996.4,1.25225405]
[1771280220725,1.25181513,1997.1,1996.5,0.45114437]
[1771280223437,5.46947532,1997.2,1996.5,1.70333033]
[1771280223634,2.02673933,1997.3,1996.6,0.45114437]
[1771280224433,2.48905461,1997.3,1996.6,0.45114437]
[1771280225546,2.48905461,1997.3,1996.6,1.70324452]
[1771280225912,2.48905461,1997.3,1996.6,1.70424452]
[1771280227737,0.46231528,1997.2,1996.6,0.001]
[1771280228132,0.46231528,1997.2,1996.5,0.001]
[1771280229549,0.46231528,1997.2,1996.3,0.001]
[1771280229846,0.46231528,1997.0,1996.3,0.001]
[1771280230039,0.46231528,1996.8,1996.3,0.001]
[1771280232116,0.46231528,1996.6,1996.1,0.001]
[1771280232728,0.46231528,1996.4,1996.1,0.001]
[1771280233034,0.46231528,1996.4,1995.5,1.25381792]
[1771280233544,0.46231528,1996.4,1995.5,0.001]
[1771280234734,0.4910676,1996.2,1995.5,0.001]
[1771280236150,0.4910676,1996.0,1995.0,1.2254956]
[1771280236356,0.4910676,1995.8,1995.0,0.2610732]